bitfinex/quotes_SOLUSD_20250818
["timestamp","ask_amount","ask_price","bid_price","bid_amount"]
[1755488891425,3.6142302,182.32,182.28,0.03]
[1755488891630,3.6142302,182.31,182.28,0.03]
[1755488891826,3.6142302,182.3,182.28,0.03]
[1755488892357,3.6142302,182.33,182.28,15.13621557]
[1755488892556,3.6142302,182.32,182.28,15.13621557]
[1755488892853,5.80831697,182.31,182.28,15.13621557]
[1755488893029,2.19408677,182.31,182.28,15.13621557]
[1755488893431,5.80831697,182.31,182.28,15.13621557]
[1755488893657,3.6142302,182.3,182.28,0.03]
[1755488893864,4.2942302,182.3,182.28,0.03]
[1755488894046,0.68,182.29,182.28,0.03]
[1755488894234,4.2942302,182.29,182.28,0.03]
[1755488894553,3.6142302,182.3,182.28,0.03]
[1755488894854,6.48853597,182.29,182.28,0.03]
[1755488895051,2.87430577,182.29,182.28,0.03]
[1755488895555,6.48853597,182.29,182.28,0.03]
[1755488895852,2.87430577,182.29,182.28,0.03]
[1755488896028,2.19430577,182.29,182.28,0.03]
[1755488896234,5.4850416,182.32,182.28,0.03]
[1755488896235,5.80840844,182.31,182.28,0.03]
[1755488896945,3.6142302,182.31,182.28,15.13621557]
[1755488897154,3.6142302,182.31,182.28,31.09272852]
[1755488897327,3.6142302,182.31,182.28,30.91272852]
[1755488897678,3.6142302,182.32,182.3,15.10621557]
[1755488897960,3.6142302,182.33,182.31,30.88272852]
[1755488898160,3.6142302,182.32,182.31,30.88272852]
[1755488898345,3.6142302,182.33,182.31,30.88272852]
[1755488898542,3.6142302,182.32,182.31,0.14216157]
[1755488898758,0.06,182.34,182.32,15.10621557]
[1755488900067,0.06,182.34,182.33,15.42837714]
[1755488900444,0.06,182.34,182.33,15.24837714]
[1755488900643,0.06,182.34,182.33,31.02489009]
[1755488900965,0.06,182.34,182.33,37.23790714]
[1755488902259,0.06,182.34,182.33,39.43480414]
[1755488903551,0.06,182.34,182.33,37.05790714]
[1755488903866,0.06,182.34,182.33,100.68139419]
[1755488904175,0.06,182.34,182.33,94.64837714]
[1755488904471,0.06,182.34,182.33,94.50621557]
[1755488904673,0.06,182.34,182.33,110.42489009]
[1755488904990,0.75,182.34,182.33,94.50621557]
[1755488905293,0.75,182.34,182.3,5.48541478]
[1755488905294,0.75,182.34,182.32,15.10621557]
[1755488905578,0.75,182.34,182.3,41.64]
[1755488905579,0.69,182.33,182.31,15.10621557]
[1755488905963,0.69,182.32,182.31,15.10621557]
[1755488906661,0.06,182.34,182.31,15.10621557]
[1755488907174,0.75,182.34,182.31,15.10621557]
[1755488908390,0.06,182.34,182.31,15.10621557]
[1755488908573,0.06,182.34,182.31,36.36771629]
[1755488910084,0.06,182.34,182.31,115.76771629]
[1755488910585,0.69,182.33,182.28,79.57216157]
[1755488910794,0.69,182.32,182.31,15.10621557]
[1755488910984,0.69,182.32,182.28,15.27837714]
[1755488911294,0.06,182.34,182.28,15.27837714]
[1755488911295,0.69,182.31,182.28,56.89837714]
[1755488911488,0.69,182.3,182.28,0.03]
[1755488911964,0.69,182.29,182.28,0.03]
[1755488912160,0.69,182.32,182.28,0.03]
[1755488912475,0.69,182.31,182.28,0.03]
[1755488912790,0.69,182.32,182.28,5.51598868]
[1755488913695,0.69,182.32,182.28,21.29250163]
[1755488914101,0.69,182.32,182.28,5.51598868]
[1755488915397,3.6742302,182.34,182.28,0.03]
[1755488915600,0.69,182.31,182.28,0.03]
[1755488915978,3.6142302,182.32,182.28,0.03]
[1755488916186,0.69,182.3,182.28,0.03]
[1755488916983,3.6142302,182.33,182.28,30.91272852]
[1755488917206,0.69,182.32,182.28,15.13621557]
[1755488917410,0.69,182.32,182.28,20.62220028]
[1755488919801,0.69,182.32,182.28,36.39871323]
[1755488920221,3.66167278,182.34,182.29,15.77651295]
[1755488920222,3.60167278,182.33,182.29,15.77651295]
[1755488920515,0.06,182.34,182.3,15.10621557]
[1755488920702,0.06,182.34,182.3,136.10621557]
[1755488920890,0.75,182.34,182.3,136.10621557]
[1755488921416,0.75,182.34,182.3,141.5915774]
[1755488921792,0.06,182.34,182.3,141.5915774]
[1755488921995,0.75,182.34,182.3,141.5915774]
[1755488922682,0.06,182.34,182.31,15.77651295]
[1755488922880,0.06,182.34,182.3,141.5915774]
[1755488923121,0.69,182.33,182.3,141.5915774]
[1755488923410,0.69,182.32,182.3,136.08621557]
[1755488923709,0.69,182.32,182.28,0.03]
[1755488923912,3.60167278,182.31,182.28,0.03]
[1755488924126,3.60167278,182.3,182.28,0.03]
[1755488924332,0.69,182.3,182.28,0.03]
[1755488925101,3.60167278,182.31,182.28,0.03]
[1755488925308,4.29167278,182.31,182.28,0.03]
[1755488925521,4.29167278,182.3,182.28,0.03]
[1755488926035,0.7,182.29,182.28,0.03]
[1755488926604,9.78743722,182.29,182.28,0.03]
[1755488926806,6.18576444,182.29,182.28,0.03]
[1755488927343,6.18576444,182.29,182.22,62.8541192]
[1755488927344,26.0,182.25,182.14,2.86441684]
[1755488927636,26.0,182.25,181.96,64.27360681]
[1755488927637,26.0,182.2,182.05,0.24]
[1755488927811,80.34820442,182.19,182.03,15.77651295]
[1755488928011,80.34820442,182.19,182.04,41.56]
[1755488928012,3.60167278,182.18,182.04,41.56]
[1755488928207,25.45974799,182.15,182.05,15.77651295]
[1755488928410,2.38083391,182.14,182.04,41.56]
[1755488928644,19.19671992,182.13,182.01,41.56]
[1755488928840,0.21989677,182.12,182.01,41.56]
[1755488929031,24.55936094,182.15,182.02,15.10621557]
[1755488929232,4.42961998,182.18,182.05,15.77651295]
[1755488929433,41.56,182.2,182.07,15.77651295]
[1755488929637,41.56,182.2,182.07,15.10621557]
[1755488929824,41.56,182.2,182.07,30.88272852]
[1755488930025,45.9208617,182.2,182.09,15.10621557]
[1755488930219,41.56,182.2,182.09,15.10621557]
[1755488930624,5.48877545,182.19,182.09,15.10621557]
[1755488931028,0.7,182.18,182.09,15.10621557]
[1755488931341,32.08081633,182.18,182.09,15.10621557]
[1755488931539,0.45989015,182.17,182.09,5.49162419]
[1755488931720,0.15976105,182.17,182.09,5.49162419]
[1755488931924,31.46878959,182.18,182.09,5.49162419]
[1755488932711,25.97968361,182.18,182.09,5.49162419]
[1755488933450,25.97968361,182.18,182.1,0.66]
[1755488933957,31.57865599,182.18,182.1,0.66]
[1755488934151,5.56886912,182.18,182.1,0.66]
[1755488934450,73.06863171,182.2,182.1,0.66]
[1755488934749,31.48863171,182.2,182.11,20.59712206]
[1755488937023,31.48863171,182.2,182.12,0.66]
[1755488937929,36.89962665,182.2,182.08,6.15209138]
[1755488938229,36.89962665,182.2,182.09,15.10621557]
[1755488938758,25.93997418,182.17,182.09,15.10621557]
[1755488938919,25.87994836,182.17,182.09,15.10621557]
[1755488939116,31.36936134,182.17,182.09,15.10621557]
[1755488939332,31.18928388,182.17,182.09,15.10621557]
[1755488939525,30.82912896,182.17,182.09,20.59799861]
[1755488939751,30.6490515,182.17,182.09,20.59799861]
[1755488939955,30.46897404,182.17,182.09,20.59799861]
[1755488940161,3.95606172,182.16,182.09,20.59799861]
[1755488940448,3.47585528,182.15,182.09,20.59799861]
[1755488940618,5.41099494,182.2,182.09,20.59799861]
[1755488940619,8.97079597,182.2,182.11,30.88272852]
[1755488940820,4.49293688,182.25,182.11,30.88272852]
[1755488940821,5.48846703,182.21,182.11,31.54272852]
[1755488941050,47.06846703,182.21,182.11,31.54272852]
[1755488941267,5.489039,182.23,182.16,15.77651295]
[1755488941452,4.41145926,182.27,182.17,0.66]
[1755488941649,3.55969431,182.27,182.17,16.43651295]
[1755488942260,3.55969431,182.27,182.2,30.88272852]
[1755488942459,41.58,182.28,182.22,15.77651295]
[1755488942760,41.58,182.28,182.21,16.43651295]
[1755488942924,41.58,182.28,182.23,15.77651295]
[1755488943121,0.06,182.31,182.26,5.48666739]
[1755488943423,0.06,182.31,182.25,15.77651295]
[1755488943624,0.06,182.31,182.29,15.10621557]
[1755488943835,0.06,182.31,182.28,15.77651295]
[1755488943836,0.06,182.31,182.3,15.77651295]
[1755488944148,0.06,182.31,182.3,31.68489009]
[1755488945158,0.06,182.31,182.3,21.39384066]
[1755488945368,0.06,182.31,182.3,37.02819204]
[1755488946869,0.06,182.31,182.3,21.39384066]
[1755488947166,0.06,182.31,182.3,37.71889996]
[1755488948283,0.06,182.31,182.3,21.94238701]
[1755488948466,0.06,182.31,182.3,21.39384066]
[1755488948772,0.06,182.31,182.3,21.25167909]
[1755488948986,0.06,182.31,182.3,20.59167909]
[1755488949189,0.06,182.31,182.3,37.17035361]
[1755488949350,0.06,182.31,182.3,21.39384066]
[1755488949553,0.06,182.31,182.3,37.17035361]
[1755488949753,0.06,182.31,182.3,20.59167909]
[1755488950184,0.06,182.31,182.3,37.17035361]
[1755488950361,0.06,182.31,182.3,37.71889996]
[1755488951079,0.06,182.31,182.3,21.25167909]
[1755488951259,0.06,182.31,182.3,78.58819204]
[1755488951870,0.06,182.31,182.3,56.66621557]
[1755488952191,0.06,182.31,182.3,77.92819204]
[1755488952407,0.06,182.31,182.3,78.58819204]
[1755488952690,0.06,182.31,182.3,78.73035361]
[1755488953079,1e-08,182.31,182.3,78.73035361]
[1755488955466,1e-08,182.31,182.3,79.27889996]
[1755488956288,0.06,182.36,182.34,0.14216157]
[1755488956491,0.06,182.36,182.35,73.23489009]
[1755488956862,0.06,182.4,182.35,73.23489009]
[1755488957091,0.06,182.4,182.36,21.40203583]
[1755488957259,0.06,182.4,182.36,37.17854878]
[1755488957681,1e-08,182.37,182.36,37.72691464]
[1755488957867,1e-08,182.37,182.36,39.92356964]
[1755488958370,1e-08,182.38,182.37,31.02489009]
[1755488958576,1e-08,182.38,182.37,73.23489009]
[1755488958970,1e-08,182.4,182.39,0.14216157]
[1755488959194,1e-08,182.4,182.39,78.71764682]
[1755488959802,1e-08,182.4,182.39,184.66592249]
[1755488959971,1e-08,182.42,182.41,57.02489009]
[1755488960315,0.06,182.46,182.42,15.24837714]
[1755488960492,0.06,182.46,182.45,31.02489009]
[1755488960811,1e-08,182.46,182.45,72.54489009]
[1755488960982,1e-08,182.46,182.45,73.21489009]
[1755488961176,1e-08,182.48,182.46,15.24837714]
[1755488961499,1e-08,182.48,182.47,56.76837714]
[1755488961797,0.06,182.51,182.48,15.24837714]
[1755488961998,0.06,182.51,182.49,72.54489009]
[1755488961999,1e-08,182.5,182.49,72.54489009]
[1755488962186,1e-08,182.5,182.49,73.21489009]
[1755488962784,1e-08,182.5,182.49,78.6946424]
[1755488962981,1e-08,182.51,182.5,15.10621557]
[1755488963180,1e-08,182.52,182.5,15.91837714]
[1755488963381,1e-08,182.52,182.49,47.68988911]
[1755488963382,1e-08,182.55,182.54,41.10621557]
[1755488963609,1e-08,182.55,182.54,99.07271522]
[1755488963785,1e-08,182.55,182.54,99.19489009]
[1755488964785,1e-08,182.55,182.54,104.67314143]
[1755488964984,0.06,182.61,182.54,104.67314143]
[1755488964985,0.06,182.61,182.55,15.24837714]
[1755488965207,5.36330967,182.7,182.6,0.14216157]
[1755488965386,3.93699085,182.69,182.68,15.10621557]
[1755488965706,3.93699085,182.69,182.68,72.38272852]
[1755488965905,3.9303189,182.69,182.68,56.60621557]
[1755488966112,0.68,182.72,182.68,72.38272852]
[1755488966284,4.61001041,182.71,182.68,56.60621557]
[1755488966482,3.93001041,182.7,182.69,30.88272852]
[1755488966980,3.93001041,182.7,182.63,1.21755516]
[1755488966981,4.61001041,182.7,182.62,20.72422863]
[1755488967182,0.68,182.7,182.65,15.77651295]
[1755488967382,3.92270716,182.69,182.67,30.88272852]
[1755488967584,0.68,182.7,182.69,15.10621557]
[1755488967801,4.59788739,182.7,182.68,41.48]
[1755488967989,4.59788739,182.69,182.68,41.48]
[1755488968198,4.59788739,182.69,182.66,15.10621557]
[1755488968404,4.59788739,182.68,182.66,15.10621557]
[1755488968610,5.47254929,182.74,182.66,15.10621557]
[1755488968611,3.91788739,182.67,182.66,15.10621557]
[1755488969122,4.59788739,182.67,182.65,41.48]
[1755488969283,4.59788739,182.66,182.62,15.10621557]
[1755488969488,26.0,182.71,182.59,5.473437]
[1755488969489,26.0,182.64,182.59,5.473437]
[1755488969788,26.0,182.64,182.47,0.67]
[1755488969789,4.59788739,182.63,182.52,41.46]
[1755488970124,4.59788739,182.62,182.51,41.46]
[1755488970297,4.59788739,182.61,182.51,41.46]
[1755488970498,4.59788739,182.6,182.52,15.10621557]
[1755488970683,4.59788739,182.59,182.52,15.10621557]
[1755488971006,3.91788739,182.58,182.51,62.71564075]
[1755488971206,3.91788739,182.57,182.52,15.10621557]
[1755488971396,0.68,182.62,182.56,15.10621557]
[1755488971982,26.68,182.62,182.57,15.10621557]
[1755488972218,5.47495209,182.65,182.57,15.10621557]
[1755488972219,0.68,182.61,182.57,15.10621557]
[1755488972522,0.68,182.61,182.56,15.77651295]
[1755488972688,0.74,182.64,182.58,15.10621557]
[1755488973300,0.74,182.64,182.58,20.58319593]
[1755488973513,0.06,182.64,182.6,30.88272852]
[1755488973821,0.06,182.64,182.62,15.10621557]
[1755488974720,0.06,182.64,182.63,15.10621557]
[1755488975018,0.06,182.64,182.63,78.63044175]
[1755488975391,0.06,182.64,182.58,55.46914083]
[1755488975392,0.06,182.64,182.59,0.14216157]
[1755488975595,0.74,182.64,182.61,15.10621557]
[1755488975815,0.74,182.64,182.63,30.88272852]
[1755488975816,0.06,182.64,182.63,30.88272852]
[1755488976002,0.06,182.64,182.63,72.48489009]
[1755488976314,0.06,182.64,182.63,73.15489009]
[1755488977099,0.06,182.64,182.63,78.63044175]
[1755488977300,1e-08,182.64,182.63,78.63044175]
[1755488977517,1e-08,182.64,182.63,79.17799691]
[1755488977700,1e-08,182.64,182.63,78.63044175]
[1755488979110,0.06,182.66,182.64,15.24837714]
[1755488979290,1e-08,182.66,182.65,72.46489009]
[1755488979494,1e-08,182.66,182.65,73.13489009]
[1755488979709,1e-08,182.66,182.65,72.46489009]
[1755488980217,1e-08,182.66,182.65,73.13489009]
[1755488980596,1e-08,182.66,182.65,72.46489009]
[1755488980796,1e-08,182.66,182.65,73.13489009]
[1755488981112,1e-08,182.66,182.65,77.93984218]
[1755488983024,1e-08,182.66,182.65,62.02116766]
[1755488983239,1e-08,182.66,182.65,15.10621557]
[1755488983412,4.59080047,182.66,182.65,15.10621557]
[1755488983622,1e-08,182.66,182.65,15.10621557]
[1755488983845,1e-08,182.66,182.65,20.58116766]
[1755488984517,1e-08,182.66,182.65,15.10621557]
[1755488984713,4.60176588,182.66,182.65,15.10621557]
[1755488985202,0.68000001,182.66,182.65,15.10621557]
[1755488985644,1e-08,182.66,182.65,36.35768061]
[1755488986253,1e-08,182.66,182.65,15.10621557]
[1755488986543,0.65000001,182.66,182.65,15.10621557]
[1755488986746,0.65000001,182.66,182.61,15.10621557]
[1755488987028,1e-08,182.66,182.61,15.10621557]
[1755488987334,0.65,182.65,182.61,15.10621557]
[1755488987641,1e-08,182.66,182.63,15.10621557]
[1755488988449,0.65,182.65,182.62,41.42]
[1755488988655,0.65,182.65,182.6,15.10621557]
[1755488988838,0.65,182.65,182.55,15.77651295]
[1755488989028,5.47525186,182.64,182.56,46.89738094]
[1755488989264,4.57845981,182.63,182.56,46.89738094]
[1755488989564,3.92845981,182.62,182.58,15.10621557]
[1755488989938,26.65000001,182.66,182.59,57.89651295]
[1755488990167,3.93143344,182.65,182.59,57.89651295]
[1755488990365,3.93143344,182.64,182.59,57.89651295]
[1755488990665,3.93143344,182.63,182.59,57.89651295]
[1755488990871,1e-08,182.66,182.61,15.77651295]
[1755488991163,3.93419171,182.65,182.61,5.47602323]
[1755488991346,3.93419171,182.64,182.61,21.95253618]
[1755488991545,1e-08,182.66,182.61,21.95253618]
[1755488991745,3.93701828,182.65,182.61,5.47602323]
[1755488991961,3.93701828,182.64,182.61,5.47602323]
[1755488992165,0.65000001,182.66,182.61,5.47602323]
[1755488992367,3.93657959,182.65,182.61,21.95253618]
[1755488992569,3.93657959,182.64,182.61,6.17602323]
[1755488992881,0.65000001,182.66,182.61,6.17602323]
[1755488993440,0.65,182.65,182.62,15.10621557]
[1755488993668,1e-08,182.66,182.62,15.10621557]
[1755488994777,1e-08,182.66,182.62,5.47557457]
[1755488994951,1e-08,182.66,182.64,30.88272852]
[1755488995446,1e-08,182.66,182.65,31.58272852]
[1755488995842,1e-08,182.66,182.65,15.80621557]
[1755488996050,3.53206464,182.69,182.65,31.58272852]
[1755488996247,0.06,182.7,182.66,15.80621557]
[1755488996659,0.06,182.7,182.68,15.10621557]
[1755488996660,4.01044573,182.7,182.68,15.10621557]
[1755488996845,3.95044573,182.69,182.68,15.10621557]
[1755488997046,0.06,182.7,182.68,15.10621557]
[1755488997545,4.01066618,182.7,182.68,15.10621557]
[1755488997744,0.06,182.7,182.68,15.80621557]
[1755488998157,0.06,182.7,182.69,15.80621557]
[1755488998475,0.06,182.7,182.69,31.58272852]
[1755488998681,0.06,182.7,182.69,37.05648187]
[1755488998854,0.06,182.7,182.69,21.27996892]
[1755488999673,0.06,182.7,182.69,37.05648187]
[1755489000377,0.06,182.7,182.69,37.19864344]
[1755489000683,3.96981549,182.74,182.71,20.57936974]
[1755489000850,4.49293688,182.77,182.71,61.97936974]
[1755489001193,3.96983698,182.76,182.71,62.67936974]
[1755489001361,3.96983698,182.76,182.71,15.10621557]
[1755489001362,4.49293688,182.76,182.71,15.10621557]
[1755489001693,4.53302191,182.72,182.71,15.10621557]
[1755489001979,4.53302191,182.72,182.7,15.10621557]
[1755489001980,4.03302191,182.72,182.7,15.10621557]
[1755489002151,3.97302191,182.71,182.7,15.10621557]
[1755489002777,3.97683239,182.71,182.7,20.57966931]
[1755489003094,3.97683239,182.71,182.7,15.10621557]
[1755489003452,3.97602127,182.71,182.7,15.10621557]
[1755489003773,3.97602127,182.71,182.65,13.82922374]
[1755489003774,4.47602127,182.71,182.65,41.4]
[1755489003950,8.45336943,182.7,182.65,41.4]
[1755489004146,3.97602127,182.69,182.66,15.10621557]
[1755489004352,3.97602127,182.68,182.66,15.80621557]
[1755489004551,3.97602127,182.67,182.66,15.80621557]
[1755489004781,3.97602127,182.67,182.66,21.28086792]
[1755489005158,3.97602127,182.67,182.66,20.58086792]
[1755489005749,3.99051617,182.67,182.66,20.58086792]
[1755489006260,3.99051617,182.67,182.66,15.10621557]
[1755489006564,3.99051617,182.67,182.66,20.58086792]
[1755489007281,3.99051617,182.67,182.66,21.28086792]
[1755489007496,0.06,182.72,182.66,37.05738087]
[1755489007661,3.99870463,182.71,182.67,57.17651295]
[1755489007998,7.5949165,182.7,182.69,15.10621557]
[1755489008283,8.2449165,182.7,182.66,56.50621557]
[1755489008458,7.5949165,182.69,182.66,56.50621557]
[1755489008659,7.5949165,182.68,182.66,56.50621557]
[1755489008860,7.5949165,182.67,182.66,61.98070001]
[1755489009083,7.5949165,182.67,182.66,62.68070001]
[1755489011557,7.5949165,182.67,182.66,78.45721296]
[1755489011796,0.06,182.72,182.66,78.45721296]
[1755489012006,7.59355246,182.71,182.66,78.45721296]
[1755489012196,7.59355246,182.7,182.66,78.45721296]
[1755489012482,0.06,182.72,182.66,78.45721296]
[1755489012483,7.59318161,182.69,182.68,20.58026855]
[1755489012697,7.59318161,182.69,182.68,56.48621557]
[1755489012890,8.24318161,182.69,182.63,15.10621557]
[1755489013194,7.59318161,182.68,182.65,15.10621557]
[1755489013399,3.5962796,182.67,182.65,15.10621557]
[1755489013572,0.65,182.69,182.65,15.10621557]
[1755489013770,7.59104563,182.68,182.65,15.10621557]
[1755489014082,3.59542222,182.67,182.65,15.10621557]
[1755489014277,3.59564716,182.68,182.65,15.80621557]
[1755489014606,3.59564716,182.7,182.67,15.10621557]
[1755489014774,7.5907248,182.69,182.67,15.10621557]
[1755489014976,3.59564716,182.68,182.67,15.10621557]
[1755489015177,0.06,182.72,182.67,31.58272852]
[1755489015425,3.5957999,182.71,182.69,15.10621557]
[1755489015704,0.06,182.72,182.69,15.80621557]
[1755489016606,0.06,182.72,182.71,15.10621557]
[1755489020613,0.06,182.72,182.69,0.03]
[1755489020800,0.7,182.71,182.69,0.03]
[1755489021301,0.06,182.72,182.69,0.03]
[1755489021491,0.76,182.72,182.69,0.03]
[1755489022711,0.7,182.71,182.69,0.03]
[1755489023530,0.7,182.7,182.69,0.03]
[1755489024025,6.17345374,182.7,182.69,0.03]
[1755489026130,13.77036327,182.7,182.69,0.03]
[1755489027032,13.77041483,182.7,182.69,0.03]
[1755489027211,8.29696109,182.7,182.69,0.03]
[1755489027539,7.59696109,182.7,182.69,0.03]
[1755489027697,3.59853088,182.7,182.69,0.03]
[1755489028202,9.07168728,182.71,182.69,0.03]
[1755489028410,0.7,182.7,182.69,0.03]
[1755489028624,26.7,182.7,182.69,0.03]
[1755489028828,34.4388862,182.7,182.67,0.03]
[1755489029033,4.47734816,182.68,182.67,0.03]
[1755489029232,38.07407279,182.68,182.67,0.03]
[1755489029443,33.59672463,182.68,182.67,0.03]
[1755489029640,30.29853088,182.68,182.67,0.03]
[1755489029945,35.77258386,182.68,182.67,0.03]
[1755489030107,39.76931098,182.68,182.67,0.03]
[1755489030457,26.14216157,182.66,182.65,1e-08]
[1755489030729,38.22819074,182.66,182.65,1e-08]
[1755489031049,80.28819074,182.66,182.65,1e-08]
[1755489031341,75.6531423,182.66,182.65,1e-08]
[1755489031552,34.2931423,182.66,182.65,1e-08]
[1755489031838,81.24995622,182.66,182.65,1e-08]
[1755489032042,85.74284309,182.66,182.65,1e-08]
[1755489032211,81.10779465,182.66,182.65,1e-08]
[1755489032719,85.74284309,182.66,182.65,1e-08]
[1755489032919,90.13266773,182.66,182.65,1e-08]
[1755489033312,85.63978086,182.66,182.65,1e-08]
[1755489033516,0.14216157,182.65,182.61,1e-08]
[1755489033729,5.61861282,182.6,182.59,0.03]
[1755489033932,51.67322424,182.6,182.59,0.03]
[1755489034128,55.27175512,182.6,182.59,0.03]
[1755489034338,13.76959355,182.6,182.59,0.03]
[1755489034521,47.51645125,182.6,182.59,0.03]
[1755489034727,50.41498213,182.6,182.59,0.03]
[1755489035213,76.41498213,182.6,182.59,0.03]
[1755489036115,77.11498213,182.6,182.59,0.03]
[1755489036345,73.51645125,182.6,182.59,0.03]
[1755489036838,51.24498741,182.6,182.59,0.03]
[1755489038524,55.22066475,182.6,182.59,1e-08]
[1755489038747,70.32688032,182.6,182.59,1e-08]
[1755489038929,0.14216157,182.59,182.57,1e-08]
[1755489039123,23.50997829,182.59,182.57,1e-08]
[1755489039318,3.58637459,182.58,182.57,1e-08]
[1755489039524,4.28637459,182.58,182.57,1e-08]
[1755489039824,6.48254759,182.58,182.57,1e-08]
[1755489040042,11.95959874,182.58,182.57,1e-08]
[1755489040550,12.10176031,182.58,182.57,1e-08]
[1755489040730,47.67921272,182.58,182.57,1e-08]
[1755489040939,50.56558731,182.58,182.57,1e-08]
[1755489041239,51.26558731,182.58,182.57,1e-08]
[1755489041436,9.90558731,182.58,182.57,1e-08]
[1755489041640,32.31921272,182.58,182.57,1e-08]
[1755489041847,50.56558731,182.58,182.57,1e-08]
[1755489042439,51.26558731,182.58,182.57,1e-08]
[1755489043352,50.56558731,182.58,182.57,1e-08]
[1755489043555,51.24720235,182.58,182.57,1e-08]
[1755489043854,47.67921272,182.58,182.57,1e-08]
[1755489044234,51.24777255,182.58,182.57,1e-08]
[1755489045949,50.54777255,182.58,182.57,1e-08]
[1755489046339,51.23777255,182.58,182.57,1e-08]
[1755489047766,50.54777255,182.58,182.57,1e-08]
[1755489048151,50.40561098,182.58,182.57,1e-08]
[1755489048541,51.09561098,182.58,182.57,1e-08]
[1755489048949,51.23777255,182.58,182.57,1e-08]
[1755489049366,50.54777255,182.58,182.57,1e-08]
[1755489049671,41.34,182.58,182.57,0.70000001]
[1755489050177,67.34,182.58,182.57,0.70000001]
[1755489050346,46.81705115,182.58,182.57,1e-08]
[1755489050856,46.81705115,182.58,182.57,0.70000001]
[1755489051064,41.34,182.58,182.57,0.70000001]
[1755489051369,0.06,182.63,182.57,10.40624679]
[1755489051555,41.34,182.62,182.58,0.7]
[1755489051756,0.06,182.63,182.59,24.81246235]
[1755489051962,41.4,182.63,182.6,0.7]
[1755489052547,41.4,182.63,182.57,1e-08]
[1755489052747,46.87561845,182.63,182.57,0.70000001]
[1755489053359,41.34,182.62,182.57,0.70000001]
[1755489053556,41.34,182.62,182.57,16.39807131]
[1755489053774,41.34,182.62,182.58,0.7]
[1755489053954,41.34,182.62,182.57,1e-08]
[1755489054150,41.34,182.62,182.57,0.70000001]
[1755489054574,5.47615136,182.61,182.57,0.70000001]
[1755489054770,41.34,182.6,182.57,0.70000001]
[1755489055157,41.34,182.6,182.57,1e-08]
[1755489055463,41.34,182.6,182.58,0.7]
[1755489055792,41.34,182.6,182.57,1e-08]
[1755489056164,41.34,182.6,182.57,0.70000001]
[1755489056393,41.34,182.6,182.58,0.7]
[1755489056759,41.34,182.6,182.59,0.7]
[1755489058056,5.47585149,182.62,182.57,0.70000001]
[1755489058360,41.32,182.61,182.58,0.7]
[1755489058567,41.32,182.61,182.59,0.7]
[1755489058769,41.32,182.61,182.6,0.7]
[1755489059176,67.32,182.61,182.6,0.7]
[1755489059354,41.32,182.61,182.6,0.7]
[1755489059557,26.06,182.63,182.6,0.7]
[1755489059777,67.38,182.63,182.6,0.7]
[1755489060282,0.06,182.63,182.61,30.80428687]
[1755489060464,0.06,182.63,182.62,31.50428687]
[1755489060668,0.06,182.63,182.62,15.80621557]
[1755489060865,0.06,182.63,182.62,36.98013836]
[1755489061677,0.06,182.63,182.62,0.7]
[1755489065158,0.06,182.63,182.62,21.28206706]
[1755489065365,0.06,182.63,182.62,36.98013836]
[1755489065978,39.78845999,182.68,182.63,15.10621557]
[1755489066176,39.78845999,182.68,182.65,15.6980713]
[1755489066378,39.78845999,182.68,182.66,0.7]
[1755489066565,39.78845999,182.68,182.67,0.7]
[1755489067191,5.992933,182.72,182.67,0.7]
[1755489067492,41.28,182.71,182.67,0.7]
[1755489067699,0.06,182.69,182.68,0.7]
[1755489067904,0.06,182.69,182.68,6.17405298]
[1755489068403,0.06,182.69,182.68,36.97833985]
[1755489069783,0.06,182.69,182.68,37.12050142]
[1755489069982,0.06,182.69,182.68,36.97833985]
[1755489070583,0.06,182.69,182.68,37.12050142]
[1755489072524,0.06,182.69,182.68,15.80621557]
[1755489072680,0.06,182.69,182.66,15.10621557]
[1755489073188,0.75,182.69,182.63,0.7]